[Event "Titled Tuesday Blitz February 28 Late 2023"]
[White "Moroni, Luca Jr"]
[Black "Skvortsov, Andrei"]
[WhiteFideId "865834"]
[BlackFideId "24108600"]
[WhiteElo "2569"]
[BlackElo "2259"]
[Result "1-0"]
[Round "07"]
[TimeControl "180+2"]
[Date "2023.02.28"]
[WhiteClock "0:02:12"]
[BlackClock "0:00:26"]

1. Nc3 {[%clk 0:03:00]}  d5 {[%clk 0:02:58]} 2. e4 {[%clk 0:02:59]}  e6 {[%clk 0:02:52]} 3. d4 {[%clk 0:02:59]}  Nf6 {[%clk 0:02:50]} 4. exd5 {[%clk 0:02:59]}  exd5 {[%clk 0:02:50]} 5. Bd3 {[%clk 0:02:59]}  c6 {[%clk 0:02:47]} 6. Nge2 {[%clk 0:03:00]}  Bd6 {[%clk 0:02:47]} 7. Bg5 {[%clk 0:03:00]}  h6 {[%clk 0:02:46]} 8. Bh4 {[%clk 0:03:00]}  O-O {[%clk 0:02:46]} 9. Qd2 {[%clk 0:03:00]}  Re8 {[%clk 0:02:45]} 10. O-O-O {[%clk 0:03:00]}  b5 {[%clk 0:02:45]} 11. Rde1 {[%clk 0:03:00]}  a5 {[%clk 0:02:43]} 12. Nd1 {[%clk 0:03:00]}  a4 {[%clk 0:02:42]} 13. f3 {[%clk 0:02:56]}  b4 {[%clk 0:02:39]} 14. Bg3 {[%clk 0:02:54]}  Bf8 {[%clk 0:02:38]} 15. Nf4 {[%clk 0:02:49]}  b3 {[%clk 0:02:35]} 16. a3 {[%clk 0:02:48]}  bxc2 {[%clk 0:02:32]} 17. Bxc2 {[%clk 0:02:49]}  Na6 {[%clk 0:02:27]} 18. Rxe8 {[%clk 0:02:48]}  Qxe8 {[%clk 0:02:26]} 19. Re1 {[%clk 0:02:47]}  Qd8 {[%clk 0:02:26]} 20. Qd3 {[%clk 0:02:45]}  c5 {[%clk 0:01:59]} 21. Nh5 {[%clk 0:02:33]}  g6 {[%clk 0:01:59]} 22. Bh4 {[%clk 0:02:33]}  c4 {[%clk 0:01:39]} 23. Nxf6+ {[%clk 0:02:26]}  Qxf6 {[%clk 0:01:35]} 24. Bxf6 {[%clk 0:02:26]}  cxd3 {[%clk 0:01:36]} 25. Bxd3 {[%clk 0:02:27]}  Nc7 {[%clk 0:01:31]} 26. Nc3 {[%clk 0:02:26]}  Bd7 {[%clk 0:01:03]} 27. Be5 {[%clk 0:02:24]}  Rc8 {[%clk 0:00:59]} 28. Kb1 {[%clk 0:02:23]}  Be6 {[%clk 0:00:58]} 29. Nxa4 {[%clk 0:02:19]}  g5 {[%clk 0:00:55]} 30. Nc5 {[%clk 0:02:15]}  Bxc5 {[%clk 0:00:33]} 31. dxc5 {[%clk 0:02:13]}  Bd7 {[%clk 0:00:28]} 32. Bxc7 {[%clk 0:02:12]}  Rxc7 {[%clk 0:00:28]} 33. b4 {[%clk 0:02:12]}  Kf8 {[%clk 0:00:26]} 34. Kb2 {[%clk 0:02:12]} 1-0


[Site "https://www.chess.com"]

[Event "Titled Tuesday Blitz February 28 Late 2023"]
[White "Bjelobrk, Igor"]
[Black "Gokerkan, Cem Kaan"]
[WhiteFideId "4300726"]
[BlackFideId "6336760"]
[WhiteElo "2335"]
[BlackElo "2365"]
[Result "0-1"]
[Round "07"]
[TimeControl "180+2"]
[Date "2023.02.28"]
[WhiteClock "0:00:11"]
[BlackClock "0:00:10"]

1. d4 {[%clk 0:02:58]}  Nf6 {[%clk 0:03:00]} 2. c4 {[%clk 0:02:56]}  g6 {[%clk 0:03:00]} 3. Nc3 {[%clk 0:02:55]}  Bg7 {[%clk 0:03:00]} 4. e4 {[%clk 0:02:55]}  O-O {[%clk 0:03:01]} 5. Nf3 {[%clk 0:02:52]}  d6 {[%clk 0:03:02]} 6. Be2 {[%clk 0:02:50]}  e5 {[%clk 0:03:02]} 7. d5 {[%clk 0:02:50]}  a5 {[%clk 0:03:02]} 8. Bg5 {[%clk 0:02:48]}  h6 {[%clk 0:03:03]} 9. Be3 {[%clk 0:02:46]}  Ng4 {[%clk 0:03:01]} 10. Bc1 {[%clk 0:02:46]}  f5 {[%clk 0:03:01]} 11. exf5 {[%clk 0:02:44]}  gxf5 {[%clk 0:03:01]} 12. g3 {[%clk 0:02:44]}  Na6 {[%clk 0:02:55]} 13. Nh4 {[%clk 0:02:42]}  Nf6 {[%clk 0:02:54]} 14. f4 {[%clk 0:02:34]}  Nc5 {[%clk 0:02:48]} 15. fxe5 {[%clk 0:02:26]}  dxe5 {[%clk 0:02:49]} 16. O-O {[%clk 0:02:26]}  Nfe4 {[%clk 0:02:18]} 17. Nxe4 {[%clk 0:02:24]}  Nxe4 {[%clk 0:02:18]} 18. Qc2 {[%clk 0:02:22]}  Qd6 {[%clk 0:01:55]} 19. Bd3 {[%clk 0:02:17]}  Qb6+ {[%clk 0:01:42]} 20. Kg2 {[%clk 0:02:15]}  Bd7 {[%clk 0:01:39]} 21. Rb1 {[%clk 0:01:55]}  Rae8 {[%clk 0:01:00]} 22. Rf3 {[%clk 0:01:53]}  Ng5 {[%clk 0:00:44]} 23. Bxg5 {[%clk 0:01:47]}  e4 {[%clk 0:00:44]} 24. Bf4 {[%clk 0:00:47]}  exf3+ {[%clk 0:00:43]} 25. Nxf3 {[%clk 0:00:48]}  Rf7 {[%clk 0:00:26]} 26. c5 {[%clk 0:00:47]}  Qf6 {[%clk 0:00:26]} 27. Bxc7 {[%clk 0:00:41]}  f4 {[%clk 0:00:24]} 28. Bxf4 {[%clk 0:00:38]}  Bg4 {[%clk 0:00:25]} 29. Ng1 {[%clk 0:00:28]}  Qd4 {[%clk 0:00:24]} 30. Bc4 {[%clk 0:00:26]}  Qxc5 {[%clk 0:00:18]} 31. d6 {[%clk 0:00:18]}  Kh8 {[%clk 0:00:15]} 32. Rf1 {[%clk 0:00:12]}  Qc6+ {[%clk 0:00:12]} 33. Kf2 {[%clk 0:00:11]}  Bd4# {[%clk 0:00:10]} 0-1


[Site "https://www.chess.com"]

[Event "Titled Tuesday Blitz February 28 Late 2023"]
[White "Diaz Perez, Michel Alejandro"]
[Black "Holt, Conrad"]
[WhiteFideId "3517179"]
[BlackFideId "2034387"]
[WhiteElo "2333"]
[BlackElo "2592"]
[Result "0-1"]
[Round "07"]
[TimeControl "180+2"]
[Date "2023.02.28"]
[WhiteClock "0:00:25"]
[BlackClock "0:01:30"]

1. e4 {[%clk 0:03:00]}  e6 {[%clk 0:03:00]} 2. d4 {[%clk 0:03:00]}  d5 {[%clk 0:03:00]} 3. Nd2 {[%clk 0:03:00]}  c5 {[%clk 0:02:59]} 4. dxc5 {[%clk 0:02:57]}  Bxc5 {[%clk 0:02:59]} 5. exd5 {[%clk 0:02:56]}  Qb6 {[%clk 0:02:52]} 6. Qf3 {[%clk 0:02:48]}  exd5 {[%clk 0:02:51]} 7. Nb3 {[%clk 0:02:38]}  Nf6 {[%clk 0:02:46]} 8. Nxc5 {[%clk 0:02:35]}  Qxc5 {[%clk 0:02:46]} 9. Bd3 {[%clk 0:02:36]}  O-O {[%clk 0:02:43]} 10. Ne2 {[%clk 0:02:35]}  Bg4 {[%clk 0:02:41]} 11. Qe3 {[%clk 0:02:33]}  Qxe3 {[%clk 0:02:38]} 12. Bxe3 {[%clk 0:02:33]}  Re8 {[%clk 0:02:39]} 13. O-O-O {[%clk 0:02:23]}  d4 {[%clk 0:02:34]} 14. Nxd4 {[%clk 0:01:50]}  Bxd1 {[%clk 0:02:33]} 15. Rxd1 {[%clk 0:01:51]}  Na6 {[%clk 0:02:23]} 16. Bxa6 {[%clk 0:01:43]}  bxa6 {[%clk 0:02:22]} 17. h3 {[%clk 0:01:44]}  Nd5 {[%clk 0:02:14]} 18. Bg5 {[%clk 0:01:40]}  h6 {[%clk 0:02:09]} 19. Bh4 {[%clk 0:01:40]}  Nf4 {[%clk 0:02:08]} 20. Bg3 {[%clk 0:01:32]}  Re4 {[%clk 0:02:07]} 21. c3 {[%clk 0:01:23]}  Nxg2 {[%clk 0:02:00]} 22. Nc6 {[%clk 0:01:05]}  Nf4 {[%clk 0:01:50]} 23. Kb1 {[%clk 0:00:57]}  Ne2 {[%clk 0:01:43]} 24. Bh2 {[%clk 0:00:53]}  Re6 {[%clk 0:01:40]} 25. Nd4 {[%clk 0:00:48]}  Rd8 {[%clk 0:01:35]} 26. Kc2 {[%clk 0:00:24]}  Nxd4+ {[%clk 0:01:33]} 27. cxd4 {[%clk 0:00:25]}  Re2+ {[%clk 0:01:31]} 28. Kc3 {[%clk 0:00:26]}  Rxf2 {[%clk 0:01:31]} 29. Be5 {[%clk 0:00:25]}  f6 {[%clk 0:01:30]} 0-1


[Site "https://www.chess.com"]

[Event "Titled Tuesday Blitz February 28 Late 2023"]
[White "Fiorito, Joaquin"]
[Black "Rozman, Levy"]
[WhiteFideId "180173"]
[BlackFideId "2039877"]
[WhiteElo "2157"]
[BlackElo "2376"]
[Result "0-1"]
[Round "07"]
[TimeControl "180+2"]
[Date "2023.02.28"]
[WhiteClock "0:00:37"]
[BlackClock "0:00:04"]

1. d4 {[%clk 0:03:00]}  g6 {[%clk 0:02:59]} 2. e4 {[%clk 0:02:59]}  Bg7 {[%clk 0:02:59]} 3. Nc3 {[%clk 0:03:00]}  a6 {[%clk 0:02:59]} 4. f4 {[%clk 0:02:59]}  d5 {[%clk 0:02:58]} 5. e5 {[%clk 0:02:54]}  h5 {[%clk 0:02:57]} 6. Nf3 {[%clk 0:02:50]}  Nh6 {[%clk 0:02:55]} 7. Be2 {[%clk 0:02:50]}  Nc6 {[%clk 0:02:51]} 8. Be3 {[%clk 0:02:50]}  Bg4 {[%clk 0:02:47]} 9. O-O {[%clk 0:02:47]}  Nf5 {[%clk 0:02:40]} 10. Bf2 {[%clk 0:02:47]}  Bh6 {[%clk 0:02:33]} 11. h3 {[%clk 0:02:27]}  Bxf4 {[%clk 0:02:27]} 12. hxg4 {[%clk 0:01:54]}  hxg4 {[%clk 0:02:25]} 13. Nh4 {[%clk 0:01:45]}  g3 {[%clk 0:01:46]} 14. Nxf5 {[%clk 0:01:40]}  gxf5 {[%clk 0:01:44]} 15. Bxg3 {[%clk 0:01:32]}  Bxg3 {[%clk 0:01:43]} 16. Rxf5 {[%clk 0:01:32]}  e6 {[%clk 0:01:37]} 17. Rf6 {[%clk 0:01:28]}  Nxe5 {[%clk 0:00:53]} 18. dxe5 {[%clk 0:01:16]}  Bh2+ {[%clk 0:00:45]} 19. Kf2 {[%clk 0:01:07]}  Bxe5 {[%clk 0:00:45]} 20. Rf3 {[%clk 0:01:05]}  Qh4+ {[%clk 0:00:44]} 21. Kf1 {[%clk 0:00:57]}  Bg3 {[%clk 0:00:33]} 22. Bd3 {[%clk 0:00:45]}  Qh1+ {[%clk 0:00:27]} 23. Ke2 {[%clk 0:00:46]}  Qxg2+ {[%clk 0:00:27]} 24. Ke3 {[%clk 0:00:47]}  d4+ {[%clk 0:00:22]} 25. Kxd4 {[%clk 0:00:45]}  Rh4+ {[%clk 0:00:15]} 26. Ne4 {[%clk 0:00:42]}  O-O-O+ {[%clk 0:00:10]} 27. Ke3 {[%clk 0:00:40]}  e5 {[%clk 0:00:04]} 28. Qf1 {[%clk 0:00:37]}  Bf4+ {[%clk 0:00:04]} 0-1


[Site "https://www.chess.com"]

[Event "Titled Tuesday Blitz February 28 Late 2023"]
[White "Quispe Arteaga, Gabriel"]
[Black "Plenca, Jadranko"]
[WhiteFideId "32059809"]
[BlackFideId "14527146"]
[WhiteElo "2274"]
[BlackElo "2491"]
[Result "0-1"]
[Round "07"]
[TimeControl "180+2"]
[Date "2023.02.28"]
[WhiteClock "0:00:01"]
[BlackClock "0:00:17"]

1. c4 {[%clk 0:02:49]}  c6 {[%clk 0:02:58]} 2. Nf3 {[%clk 0:02:49]}  d5 {[%clk 0:02:57]} 3. e3 {[%clk 0:02:50]}  Nf6 {[%clk 0:02:57]} 4. Nc3 {[%clk 0:02:50]}  a6 {[%clk 0:02:58]} 5. b3 {[%clk 0:02:50]}  Bf5 {[%clk 0:02:57]} 6. Bb2 {[%clk 0:02:50]}  h6 {[%clk 0:02:56]} 7. Be2 {[%clk 0:02:50]}  e6 {[%clk 0:02:56]} 8. d3 {[%clk 0:02:49]}  Nbd7 {[%clk 0:02:56]} 9. h3 {[%clk 0:02:49]}  Bb4 {[%clk 0:02:56]} 10. a3 {[%clk 0:02:49]}  Ba5 {[%clk 0:02:55]} 11. g4 {[%clk 0:02:42]}  Bh7 {[%clk 0:02:54]} 12. Rg1 {[%clk 0:02:43]}  dxc4 {[%clk 0:02:42]} 13. dxc4 {[%clk 0:02:23]}  Qe7 {[%clk 0:02:39]} 14. b4 {[%clk 0:02:15]}  Bc7 {[%clk 0:02:37]} 15. Qb3 {[%clk 0:02:14]}  O-O-O {[%clk 0:02:33]} 16. O-O-O {[%clk 0:02:11]}  Ne5 {[%clk 0:02:25]} 17. Nd4 {[%clk 0:02:12]}  c5 {[%clk 0:02:16]} 18. bxc5 {[%clk 0:02:12]}  Qxc5 {[%clk 0:02:16]} 19. f4 {[%clk 0:02:05]}  Nc6 {[%clk 0:02:14]} 20. Na4 {[%clk 0:02:05]}  Nxd4 {[%clk 0:02:12]} 21. Bxd4 {[%clk 0:00:53]}  Qc6 {[%clk 0:02:08]} 22. f5 {[%clk 0:00:54]}  exf5 {[%clk 0:02:03]} 23. gxf5 {[%clk 0:00:54]}  Bxf5 {[%clk 0:01:50]} 24. Rdf1 {[%clk 0:00:54]}  Bg6 {[%clk 0:01:38]} 25. Bf3 {[%clk 0:00:54]}  Ne4 {[%clk 0:01:38]} 26. Nc3 {[%clk 0:00:48]}  Rhe8 {[%clk 0:01:37]} 27. Bxe4 {[%clk 0:00:43]}  Bxe4 {[%clk 0:01:37]} 28. Rxf7 {[%clk 0:00:43]}  g5 {[%clk 0:01:31]} 29. Rgf1 {[%clk 0:00:23]}  Bd3 {[%clk 0:01:29]} 30. Rd1 {[%clk 0:00:23]}  Bxc4 {[%clk 0:01:29]} 31. Rxc7+ {[%clk 0:00:23]}  Qxc7 {[%clk 0:01:28]} 32. Qb4 {[%clk 0:00:24]}  Bf7 {[%clk 0:01:12]} 33. Kb2 {[%clk 0:00:24]}  Qc4 {[%clk 0:01:12]} 34. Qb6 {[%clk 0:00:24]}  Re6 {[%clk 0:01:12]} 35. Qa7 {[%clk 0:00:22]}  Kc7 {[%clk 0:00:35]} 36. Rc1 {[%clk 0:00:16]}  Kd7 {[%clk 0:00:29]} 37. Qxb7+ {[%clk 0:00:15]}  Ke8 {[%clk 0:00:29]} 38. Ka1 {[%clk 0:00:08]}  Rc6 {[%clk 0:00:26]} 39. Rc2 {[%clk 0:00:02]}  Qf1+ {[%clk 0:00:25]} 40. Kb2 {[%clk 0:00:02]}  Qc4 {[%clk 0:00:25]} 41. Ka1 {[%clk 0:00:02]}  Bd5 {[%clk 0:00:20]} 42. Rf2 {[%clk 0:00:02]}  Rf6 {[%clk 0:00:17]} 43. Rxf6 {[%clk 0:00:01]}  Bxb7 {[%clk 0:00:17]} 0-1


[Site "https://www.chess.com"]

[Event "Titled Tuesday Blitz February 28 Late 2023"]
[White "Hambleton, Aman"]
[Black "Saveliev, Alexei"]
[WhiteFideId "2606577"]
[BlackFideId "24128546"]
[WhiteElo "2511"]
[BlackElo "2271"]
[Result "0-1"]
[Round "07"]
[TimeControl "180+2"]
[Date "2023.02.28"]
[WhiteClock "0:00:02"]
[BlackClock "0:01:35"]

1. d4 {[%clk 0:03:00]}  g6 {[%clk 0:02:59]} 2. c4 {[%clk 0:02:58]}  Bg7 {[%clk 0:02:57]} 3. e4 {[%clk 0:02:59]}  d6 {[%clk 0:02:57]} 4. Nc3 {[%clk 0:02:58]}  Nc6 {[%clk 0:02:58]} 5. Be3 {[%clk 0:02:57]}  e5 {[%clk 0:02:57]} 6. Nge2 {[%clk 0:02:57]}  f5 {[%clk 0:02:57]} 7. d5 {[%clk 0:02:53]}  Nce7 {[%clk 0:02:57]} 8. f3 {[%clk 0:02:53]}  Nf6 {[%clk 0:02:58]} 9. h3 {[%clk 0:02:51]}  O-O {[%clk 0:02:58]} 10. Qd2 {[%clk 0:02:51]}  a6 {[%clk 0:02:58]} 11. g4 {[%clk 0:02:23]}  b5 {[%clk 0:02:57]} 12. g5 {[%clk 0:02:11]}  Nh5 {[%clk 0:02:57]} 13. cxb5 {[%clk 0:02:08]}  axb5 {[%clk 0:02:57]} 14. Nxb5 {[%clk 0:02:09]}  fxe4 {[%clk 0:02:37]} 15. fxe4 {[%clk 0:02:09]}  Ba6 {[%clk 0:02:37]} 16. Nec3 {[%clk 0:01:10]}  Ng3 {[%clk 0:02:32]} 17. Rg1 {[%clk 0:01:10]}  Nxf1 {[%clk 0:02:31]} 18. Rxf1 {[%clk 0:01:11]}  Rxf1+ {[%clk 0:02:31]} 19. Kxf1 {[%clk 0:01:12]}  Qd7 {[%clk 0:02:32]} 20. a4 {[%clk 0:00:55]}  Bxb5+ {[%clk 0:02:31]} 21. Nxb5 {[%clk 0:00:47]}  Rxa4 {[%clk 0:02:31]} 22. Na3 {[%clk 0:00:31]}  Qxh3+ {[%clk 0:02:27]} 23. Ke2 {[%clk 0:00:13]}  Rxe4 {[%clk 0:02:19]} 24. Nc2 {[%clk 0:00:13]}  Nf5 {[%clk 0:02:09]} 25. Ra8+ {[%clk 0:00:10]}  Bf8 {[%clk 0:02:04]} 26. Kd3 {[%clk 0:00:06]}  Qf3 {[%clk 0:01:55]} 27. Qe2 {[%clk 0:00:02]}  Qh1 {[%clk 0:01:42]} 28. Ra1 {[%clk 0:00:02]}  Qh4 {[%clk 0:01:39]} 29. Qd2 {[%clk 0:00:01]}  Nxe3 {[%clk 0:01:36]} 30. Qxe3 {[%clk 0:00:01]}  Rxe3+ {[%clk 0:01:36]} 31. Nxe3 {[%clk 0:00:02]}  Qd4+ {[%clk 0:01:36]} 32. Ke2 {[%clk 0:00:02]}  Qxb2+ {[%clk 0:01:37]} 33. Nc2 {[%clk 0:00:02]}  Qxc2+ {[%clk 0:01:37]} 34. Kf3 {[%clk 0:00:02]}  Qc3+ {[%clk 0:01:37]} 35. Kg4 {[%clk 0:00:03]}  Qxa1 {[%clk 0:01:36]} 36. Kf3 {[%clk 0:00:03]}  Qd4 {[%clk 0:01:36]} 37. Kg3 {[%clk 0:00:03]}  Qf4+ {[%clk 0:01:36]} 38. Kh3 {[%clk 0:00:03]}  Qxg5 {[%clk 0:01:35]} 39. Kh2 {[%clk 0:00:03]}  Bg7 {[%clk 0:01:36]} 40. Kh3 {[%clk 0:00:03]}  e4 {[%clk 0:01:37]} 41. Kh2 {[%clk 0:00:03]}  e3 {[%clk 0:01:36]} 42. Kh3 {[%clk 0:00:02]}  e2 {[%clk 0:01:36]} 43. Kh2 {[%clk 0:00:02]}  e1=Q {[%clk 0:01:34]} 44. Kh3 {[%clk 0:00:02]}  Qeg3# {[%clk 0:01:35]} 0-1


[Site "https://www.chess.com"]

[Event "Titled Tuesday Blitz February 28 Late 2023"]
[White "Dourerassou, Jonathan"]
[Black "Sebag, Marie"]
[WhiteFideId "628050"]
[BlackFideId "617822"]
[WhiteElo "2499"]
[BlackElo "2440"]
[Result "0-1"]
[Round "07"]
[TimeControl "180+2"]
[Date "2023.02.28"]
[WhiteClock "0:00:08"]
[BlackClock "0:00:05"]

1. d4 {[%clk 0:03:00]}  d5 {[%clk 0:02:58]} 2. Nf3 {[%clk 0:02:59]}  Nf6 {[%clk 0:02:57]} 3. Bf4 {[%clk 0:02:59]}  c5 {[%clk 0:02:56]} 4. e3 {[%clk 0:02:58]}  Nc6 {[%clk 0:02:56]} 5. Nbd2 {[%clk 0:02:58]}  Nh5 {[%clk 0:02:56]} 6. Bg3 {[%clk 0:02:56]}  Nxg3 {[%clk 0:02:50]} 7. hxg3 {[%clk 0:02:57]}  e6 {[%clk 0:02:44]} 8. c3 {[%clk 0:02:57]}  Be7 {[%clk 0:02:42]} 9. Bd3 {[%clk 0:02:56]}  h6 {[%clk 0:02:42]} 10. Qe2 {[%clk 0:02:55]}  b6 {[%clk 0:02:41]} 11. g4 {[%clk 0:02:51]}  Bb7 {[%clk 0:02:40]} 12. Bb5 {[%clk 0:02:49]}  a6 {[%clk 0:02:35]} 13. Ba4 {[%clk 0:02:46]}  b5 {[%clk 0:02:34]} 14. Bc2 {[%clk 0:02:44]}  c4 {[%clk 0:02:27]} 15. e4 {[%clk 0:02:43]}  Qc7 {[%clk 0:02:14]} 16. g5 {[%clk 0:02:36]}  O-O-O {[%clk 0:02:10]} 17. gxh6 {[%clk 0:02:34]}  gxh6 {[%clk 0:02:01]} 18. O-O-O {[%clk 0:02:29]}  b4 {[%clk 0:02:00]} 19. exd5 {[%clk 0:02:21]}  exd5 {[%clk 0:01:56]} 20. Ne5 {[%clk 0:01:55]}  bxc3 {[%clk 0:01:52]} 21. Bf5+ {[%clk 0:01:45]}  Kb8 {[%clk 0:01:49]} 22. bxc3 {[%clk 0:01:31]}  Ba3+ {[%clk 0:01:32]} 23. Kc2 {[%clk 0:01:30]}  Qa5 {[%clk 0:01:29]} 24. Ndxc4 {[%clk 0:00:53]}  Qa4+ {[%clk 0:01:17]} 25. Kb1 {[%clk 0:00:51]}  dxc4 {[%clk 0:01:01]} 26. Nxc4 {[%clk 0:00:51]}  Ka7 {[%clk 0:00:39]} 27. Bc2 {[%clk 0:00:47]}  Qb5+ {[%clk 0:00:35]} 28. Ka1 {[%clk 0:00:47]}  Bb2+ {[%clk 0:00:35]} 29. Kb1 {[%clk 0:00:45]}  Bxc3+ {[%clk 0:00:33]} 30. Bb3 {[%clk 0:00:45]}  Na5 {[%clk 0:00:25]} 31. Rh5 {[%clk 0:00:41]}  f5 {[%clk 0:00:21]} 32. d5 {[%clk 0:00:31]}  Nxb3 {[%clk 0:00:19]} 33. axb3 {[%clk 0:00:24]}  Qxb3+ {[%clk 0:00:18]} 34. Kc1 {[%clk 0:00:25]}  Rc8 {[%clk 0:00:13]} 35. Rh4 {[%clk 0:00:24]}  Bb2+ {[%clk 0:00:12]} 36. Qxb2 {[%clk 0:00:21]}  Rxc4+ {[%clk 0:00:11]} 37. Rxc4 {[%clk 0:00:22]}  Qxc4+ {[%clk 0:00:11]} 38. Kb1 {[%clk 0:00:22]}  Rb8 {[%clk 0:00:11]} 39. Ka1 {[%clk 0:00:22]}  Bxd5 {[%clk 0:00:10]} 40. Qa3 {[%clk 0:00:16]}  Bb7 {[%clk 0:00:06]} 41. Rc1 {[%clk 0:00:12]}  Qb5 {[%clk 0:00:06]} 42. f4 {[%clk 0:00:10]}  Qb6 {[%clk 0:00:06]} 43. Qc3 {[%clk 0:00:08]}  Ka8 {[%clk 0:00:05]} 44. Rb1 {[%clk 0:00:08]}  Qc6 {[%clk 0:00:05]} 45. Qa3 {[%clk 0:00:08]}  Rc8 {[%clk 0:00:05]} 46. Rb2 {[%clk 0:00:08]}  Qc3 {[%clk 0:00:05]} 47. Qa2 {[%clk 0:00:07]}  Qc1+ {[%clk 0:00:05]} 48. Rb1 {[%clk 0:00:07]}  Qc3+ {[%clk 0:00:05]} 49. Rb2 {[%clk 0:00:08]}  Rd8 {[%clk 0:00:05]} 50. Qb1 {[%clk 0:00:08]}  Qa3+ {[%clk 0:00:04]} 51. Ra2 {[%clk 0:00:07]}  Qc3+ {[%clk 0:00:04]} 52. Rb2 {[%clk 0:00:08]}  Rd2 {[%clk 0:00:04]} 53. Qa2 {[%clk 0:00:06]}  Qxb2+ {[%clk 0:00:04]} 54. Qxb2 {[%clk 0:00:06]}  Rxb2 {[%clk 0:00:04]} 55. Kxb2 {[%clk 0:00:07]}  Bxg2 {[%clk 0:00:04]} 56. Kc3 {[%clk 0:00:07]}  Be4 {[%clk 0:00:05]} 57. Kd4 {[%clk 0:00:08]}  h5 {[%clk 0:00:05]} 0-1


[Site "https://www.chess.com"]

[Event "Titled Tuesday Blitz February 28 Late 2023"]
[White "Di Nicolantonio, Lucas"]
[Black "Bilych, Olexiy"]
[WhiteFideId "680460"]
[BlackFideId "14156504"]
[WhiteElo "2358"]
[BlackElo "2320"]
[Result "1/2-1/2"]
[Round "07"]
[TimeControl "180+2"]
[Date "2023.02.28"]
[WhiteClock "0:00:05"]
[BlackClock "0:00:12"]

1. Nf3 {[%clk 0:03:00]}  d5 {[%clk 0:02:59]} 2. e3 {[%clk 0:03:00]}  Nf6 {[%clk 0:02:58]} 3. c4 {[%clk 0:03:00]}  e6 {[%clk 0:02:58]} 4. Nc3 {[%clk 0:03:01]}  Bd6 {[%clk 0:02:58]} 5. b3 {[%clk 0:02:59]}  O-O {[%clk 0:02:58]} 6. Bb2 {[%clk 0:02:59]}  Re8 {[%clk 0:02:58]} 7. Be2 {[%clk 0:02:52]}  b6 {[%clk 0:02:54]} 8. Qc2 {[%clk 0:02:42]}  a6 {[%clk 0:02:49]} 9. Rg1 {[%clk 0:02:22]}  Bb7 {[%clk 0:02:45]} 10. g4 {[%clk 0:02:22]}  Nbd7 {[%clk 0:02:41]} 11. g5 {[%clk 0:02:20]}  Ne4 {[%clk 0:02:41]} 12. cxd5 {[%clk 0:02:16]}  exd5 {[%clk 0:02:40]} 13. Nxe4 {[%clk 0:02:16]}  dxe4 {[%clk 0:02:40]} 14. Nd4 {[%clk 0:02:09]}  c5 {[%clk 0:02:23]} 15. Nf5 {[%clk 0:02:05]}  Be5 {[%clk 0:02:23]} 16. O-O-O {[%clk 0:01:50]}  Bxb2+ {[%clk 0:02:02]} 17. Qxb2 {[%clk 0:01:50]}  Ne5 {[%clk 0:02:02]} 18. Kb1 {[%clk 0:01:44]}  Qd7 {[%clk 0:01:58]} 19. Bg4 {[%clk 0:01:41]}  Qd3+ {[%clk 0:01:58]} 20. Ka1 {[%clk 0:01:41]}  Rad8 {[%clk 0:01:57]} 21. h4 {[%clk 0:01:27]}  Bc8 {[%clk 0:01:57]} 22. h5 {[%clk 0:01:24]}  Bxf5 {[%clk 0:01:40]} 23. Bxf5 {[%clk 0:01:24]}  g6 {[%clk 0:01:35]} 24. hxg6 {[%clk 0:01:14]}  fxg6 {[%clk 0:01:28]} 25. f4 {[%clk 0:01:00]}  Nc6 {[%clk 0:00:55]} 26. Bxg6 {[%clk 0:00:39]}  hxg6 {[%clk 0:00:42]} 27. Rh1 {[%clk 0:00:39]}  Nd4 {[%clk 0:00:42]} 28. exd4 {[%clk 0:00:35]}  Rxd4 {[%clk 0:00:34]} 29. Rh6 {[%clk 0:00:30]}  e3 {[%clk 0:00:24]} 30. Rdh1 {[%clk 0:00:23]}  exd2 {[%clk 0:00:24]} 31. Rh8+ {[%clk 0:00:23]}  Kf7 {[%clk 0:00:25]} 32. R1h7+ {[%clk 0:00:23]}  Ke6 {[%clk 0:00:25]} 33. Rxe8+ {[%clk 0:00:23]}  Kf5 {[%clk 0:00:26]} 34. Rf8+ {[%clk 0:00:09]}  Kg4 {[%clk 0:00:25]} 35. Rh1 {[%clk 0:00:09]}  d1=Q+ {[%clk 0:00:25]} 36. Rxd1 {[%clk 0:00:09]}  Qxd1+ {[%clk 0:00:25]} 37. Qb1 {[%clk 0:00:10]}  Qxb1+ {[%clk 0:00:18]} 38. Kxb1 {[%clk 0:00:10]}  Rxf4 {[%clk 0:00:19]} 39. Rf6 {[%clk 0:00:11]}  Kxg5 {[%clk 0:00:18]} 40. Rxb6 {[%clk 0:00:11]}  c4 {[%clk 0:00:14]} 41. Rxa6 {[%clk 0:00:10]}  cxb3 {[%clk 0:00:12]} 42. axb3 {[%clk 0:00:11]}  Rb4 {[%clk 0:00:12]} 43. Kb2 {[%clk 0:00:10]}  Rb8 {[%clk 0:00:10]} 44. Ka3 {[%clk 0:00:09]}  Kf5 {[%clk 0:00:11]} 45. b4 {[%clk 0:00:09]}  g5 {[%clk 0:00:11]} 46. Ka4 {[%clk 0:00:09]}  g4 {[%clk 0:00:12]} 47. Ra7 {[%clk 0:00:09]}  Rg8 {[%clk 0:00:11]} 48. b5 {[%clk 0:00:09]}  Ke6 {[%clk 0:00:10]} 49. Rc7 {[%clk 0:00:07]}  g3 {[%clk 0:00:10]} 50. Rc1 {[%clk 0:00:08]}  g2 {[%clk 0:00:11]} 51. Rg1 {[%clk 0:00:09]}  Kd5 {[%clk 0:00:11]} 52. Kb4 {[%clk 0:00:07]}  Rg4+ {[%clk 0:00:09]} 53. Ka5 {[%clk 0:00:07]}  Rg8 {[%clk 0:00:09]} 54. Kb4 {[%clk 0:00:07]}  Kd4 {[%clk 0:00:09]} 55. b6 {[%clk 0:00:07]}  Kd5 {[%clk 0:00:09]} 56. Kb5 {[%clk 0:00:07]}  Kd6 {[%clk 0:00:09]} 57. Rd1+ {[%clk 0:00:06]}  Ke6 {[%clk 0:00:09]} 58. b7 {[%clk 0:00:06]}  g1=Q {[%clk 0:00:08]} 59. Rxg1 {[%clk 0:00:06]}  Rxg1 {[%clk 0:00:09]} 60. Kc6 {[%clk 0:00:03]}  Rc1+ {[%clk 0:00:10]} 61. Kb6 {[%clk 0:00:03]}  Kd7 {[%clk 0:00:09]} 62. b8=Q {[%clk 0:00:03]}  Rb1+ {[%clk 0:00:10]} 63. Ka7 {[%clk 0:00:03]}  Ra1+ {[%clk 0:00:10]} 64. Kb7 {[%clk 0:00:04]}  Rb1+ {[%clk 0:00:11]} 65. Ka7 {[%clk 0:00:04]}  Ra1+ {[%clk 0:00:12]} 66. Kb7 {[%clk 0:00:04]}  Rb1+ {[%clk 0:00:12]} 67. Ka7 {[%clk 0:00:05]} 1/2-1/2


[Site "https://www.chess.com"]